[Event "The Schackveckan 2023: Göteborg open"]
[Site "Göteborgs schackcentrum, Vegagatan 20, Gothenburg, Sweden"]
[Date "2023.08.11"]
[Round "3.7"]
[White "Yang, Mandi"]
[Black "Ottgard, Andreas"]
[Result "1-0"]
[TimeControl "15 minutes + 5 seconds per move from move one (Round 1 - 4) / 90 minutes + 30 seconds per move from move one (Round 5 - 8)"]
[WhiteFideId "1774778"]
[BlackFideId "1730592"]
[WhiteElo "1457"]
[BlackElo "1874"]

1. e4 {[%clk 00:15:09]} {[%emt 00:00:02]} d6 {[%clk 00:15:09]} {[%emt
00:00:02]} 2. d4 {[%clk 00:15:12]} {[%emt 00:00:01]} Nf6 {[%clk 00:15:13]}
{[%emt 00:00:01]} 3. Nc3 {[%clk 00:15:15]} {[%emt 00:00:01]} g6 {[%clk
00:15:16]} {[%emt 00:00:02]} 4. f3 {[%clk 00:15:19]} c6 {[%clk 00:15:05]}
{[%emt 00:00:15]} 5. Be3 {[%clk 00:15:17]} {[%emt 00:00:07]} b5 {[%clk
00:14:57]} {[%emt 00:00:13]} 6. a3 {[%clk 00:14:52]} {[%emt 00:00:31]} Nbd7
{[%clk 00:14:55]} {[%emt 00:00:07]} 7. Qd2 {[%clk 00:14:53]} {[%emt 00:00:04]}
a5 {[%clk 00:14:05]} {[%emt 00:00:55]} 8. d5 {[%clk 00:14:45]} {[%emt
00:00:13]} cxd5 {[%clk 00:13:12]} {[%emt 00:00:59]} 9. Nxd5 {[%clk 00:14:18]}
{[%emt 00:00:31]} Rb8 {[%clk 00:11:48]} {[%emt 00:01:29]} 10. Qc3 {[%clk
00:13:31]} {[%emt 00:00:53]} Nxd5 {[%clk 00:11:21]} {[%emt 00:00:32]} 11. exd5
{[%clk 00:13:25]} {[%emt 00:00:10]} Nf6 {[%clk 00:11:09]} {[%emt 00:00:17]} 12.
g4 {[%clk 00:12:39]} {[%emt 00:00:51]} Bg7 {[%clk 00:10:28]} {[%emt 00:00:46]}
13. g5 {[%clk 00:12:28]} {[%emt 00:00:16]} Nh5 {[%clk 00:10:18]} {[%emt
00:00:15]} 14. Bd4 {[%clk 00:12:33]} O-O {[%clk 00:09:38]} {[%emt 00:00:45]} 15.
Bxg7 {[%clk 00:12:34]} {[%emt 00:00:03]} Nxg7 {[%clk 00:09:40]} {[%emt
00:00:02]} 16. Ne2 {[%clk 00:11:43]} {[%emt 00:00:57]} Qb6 {[%clk 00:08:22]}
{[%emt 00:01:24]} 17. Qd4 {[%clk 00:10:53]} {[%emt 00:00:55]} Nf5 {[%clk
00:07:49]} {[%emt 00:00:37]} 18. Qxb6 {[%clk 00:10:51]} {[%emt 00:00:07]} Rxb6
{[%clk 00:07:52]} {[%emt 00:00:03]} 19. O-O-O {[%clk 00:10:45]} {[%emt
00:00:11]} b4 {[%clk 00:06:26]} {[%emt 00:01:31]} 20. axb4 {[%clk 00:10:23]}
{[%emt 00:00:26]} axb4 {[%clk 00:06:13]} {[%emt 00:00:19]} 21. Nd4 {[%clk
00:10:08]} {[%emt 00:00:19]} Ne3 {[%clk 00:06:05]} {[%emt 00:00:14]} 22. Re1
{[%clk 00:10:07]} {[%emt 00:00:05]} Nxd5 {[%clk 00:05:41]} {[%emt 00:00:30]} 23.
Bc4 {[%clk 00:10:11]} e6 {[%clk 00:04:51]} {[%emt 00:00:54]} 24. Bxd5 {[%clk
00:10:15]} {[%emt 00:00:01]} exd5 {[%clk 00:04:54]} {[%emt 00:00:02]} 25. Re3
{[%clk 00:09:31]} {[%emt 00:00:49]} Kg7 {[%clk 00:04:21]} {[%emt 00:00:39]} 26.
Rhe1 {[%clk 00:09:24]} {[%emt 00:00:12]} h6 {[%clk 00:04:12]} {[%emt 00:00:14]}
27. h4 {[%clk 00:08:38]} {[%emt 00:00:50]} hxg5 {[%clk 00:03:47]} {[%emt
00:00:29]} 28. hxg5 {[%clk 00:08:42]} {[%emt 00:00:02]} Rh8 {[%clk 00:03:09]}
{[%emt 00:00:44]} 29. Re8 {[%clk 00:08:35]} {[%emt 00:00:12]} Rxe8 {[%clk
00:03:01]} {[%emt 00:00:14]} 30. Rxe8 {[%clk 00:08:38]} {[%emt 00:00:01]} Bh3
{[%clk 00:02:57]} {[%emt 00:00:07]} 31. Ra8 {[%emt 00:01:26]} Bg2 {[%clk
00:02:43]} 32. Ra5 {[%clk 00:07:32]} {[%emt 00:00:11]} Bh3 {[%clk 00:02:05]}
{[%emt 00:00:42]} 33. Rxd5 {[%clk 00:07:14]} {[%emt 00:00:23]} Kf8 {[%clk
00:01:33]} {[%emt 00:00:38]} 34. Rb5 {[%clk 00:05:33]} {[%emt 00:01:46]} Rxb5
{[%clk 00:01:27]} {[%emt 00:00:10]} 35. Nxb5 {[%clk 00:05:36]} {[%emt
00:00:02]} Ke7 {[%clk 00:00:57]} {[%emt 00:00:35]} 36. Kd2 {[%clk 00:05:39]}
{[%emt 00:00:02]} Ke6 {[%clk 00:00:21]} {[%emt 00:00:41]} 37. Nd4+ {[%clk
00:05:03]} {[%emt 00:00:41]} Kd5 {[%clk 00:00:25]} {[%emt 00:00:02]} 38. Ke3
{[%clk 00:04:52]} {[%emt 00:00:15]} Bf1 {[%clk 00:00:12]} {[%emt 00:00:19]} 39.
Ne2 {[%clk 00:04:09]} {[%emt 00:00:48]} Bxe2 {[%clk 00:00:11]} {[%emt
00:00:05]} 40. Kxe2 {[%clk 00:04:13]} {[%emt 00:00:01]} Kd4 {[%clk 00:00:14]}
{[%emt 00:00:03]} 41. Kd2 {[%clk 00:04:17]} 1-0

[Event "The Schackveckan 2023: Göteborg open"]
[Site "Göteborgs schackcentrum, Vegagatan 20, Gothenburg, Sweden"]
[Date "2023.08.11"]
[Round "3.8"]
[White "Svensson, Leif"]
[Black "Andersson, Stig"]
[Result "0-1"]
[TimeControl "15 minutes + 5 seconds per move from move one (Round 1 - 4) / 90 minutes + 30 seconds per move from move one (Round 5 - 8)"]
[WhiteFideId "1702459"]
[BlackFideId "1731971"]
[WhiteElo "2038"]
[BlackElo "1811"]

1. d4 {[%emt 00:00:10]} Nf6 {[%emt 00:00:05]} 2. Nc3 {[%emt 00:00:02]} d5
{[%emt 00:00:08]} 3. Bf4 {[%clk 00:15:00]} {[%emt 00:00:13]} c6 {[%clk
00:14:43]} {[%emt 00:00:30]} 4. e3 {[%clk 00:15:02]} {[%emt 00:00:03]} e6
{[%clk 00:14:41]} {[%emt 00:00:05]} 5. Bd3 {[%clk 00:14:41]} {[%emt 00:00:28]}
Bb4 {[%clk 00:14:26]} {[%emt 00:00:20]} 6. Nge2 {[%clk 00:14:40]} {[%emt
00:00:06]} Nbd7 {[%clk 00:14:13]} {[%emt 00:00:17]} 7. a3 {[%clk 00:14:44]}
{[%emt 00:00:03]} Be7 {[%clk 00:14:09]} {[%emt 00:00:08]} 8. Qd2 {[%clk
00:14:37]} {[%emt 00:00:12]} Nb6 {[%clk 00:13:59]} {[%emt 00:00:15]} 9. O-O
{[%clk 00:13:18]} {[%emt 00:01:25]} Nc4 {[%clk 00:13:32]} {[%emt 00:00:31]} 10.
Bxc4 {[%clk 00:13:08]} {[%emt 00:00:15]} dxc4 {[%clk 00:13:34]} {[%emt
00:00:03]} 11. e4 {[%clk 00:13:11]} {[%emt 00:00:02]} O-O {[%clk 00:13:20]}
{[%emt 00:00:19]} 12. Rad1 {[%clk 00:13:13]} {[%emt 00:00:04]} b6 {[%clk
00:12:20]} {[%emt 00:01:05]} 13. Qe3 {[%clk 00:12:29]} {[%emt 00:00:48]} Qe8
{[%clk 00:11:24]} {[%emt 00:01:01]} 14. h3 {[%clk 00:11:47]} {[%emt 00:00:47]}
Bb7 {[%clk 00:11:21]} {[%emt 00:00:08]} 15. Bh2 {[%clk 00:11:06]} {[%emt
00:00:47]} a6 {[%clk 00:11:15]} {[%emt 00:00:11]} 16. Rfe1 {[%clk 00:09:56]}
{[%emt 00:01:15]} Rc8 {[%clk 00:10:38]} {[%emt 00:00:41]} 17. Nf4 {[%clk
00:08:02]} {[%emt 00:02:01]} Bd8 {[%clk 00:08:47]} {[%emt 00:01:54]} 18. Qe2
{[%clk 00:07:55]} {[%emt 00:00:13]} b5 {[%clk 00:08:41]} {[%emt 00:00:11]} 19.
Nh5 {[%clk 00:07:41]} {[%emt 00:00:19]} Nxh5 {[%clk 00:06:01]} {[%emt
00:02:45]} 20. Qxh5 {[%clk 00:07:44]} {[%emt 00:00:01]} f6 {[%clk 00:05:57]}
{[%emt 00:00:09]} 21. Qg4 {[%clk 00:07:22]} {[%emt 00:00:26]} Bc7 {[%clk
00:04:20]} {[%emt 00:01:43]} 22. Bxc7 {[%clk 00:05:30]} {[%emt 00:01:58]} Rxc7
{[%clk 00:04:16]} {[%emt 00:00:08]} 23. d5 {[%clk 00:05:33]} {[%emt 00:00:02]}
cxd5 {[%clk 00:04:13]} {[%emt 00:00:09]} 24. exd5 {[%clk 00:05:36]} {[%emt
00:00:01]} e5 {[%clk 00:04:02]} {[%emt 00:00:15]} 25. f4 {[%clk 00:05:11]}
{[%emt 00:00:31]} f5 {[%clk 00:02:34]} {[%emt 00:01:35]} 26. Qg5 {[%clk
00:04:58]} {[%emt 00:00:16]} e4 {[%clk 00:02:33]} {[%emt 00:00:07]} 27. g4
{[%clk 00:04:06]} {[%emt 00:00:56]} Rcf7 {[%clk 00:01:54]} {[%emt 00:00:44]} 28.
gxf5 {[%clk 00:02:13]} {[%emt 00:01:59]} Rxf5 {[%clk 00:01:08]} {[%emt
00:00:52]} 29. Rxe4 {[%clk 00:02:16]} 0-1

[Event "The Schackveckan 2023: Göteborg open"]
[Site "Göteborgs schackcentrum, Vegagatan 20, Gothenburg, Sweden"]
[Date "2023.08.11"]
[Round "3.9"]
[White "Wennerlund, Elias"]
[Black "Krantz, Martin"]
[Result "0-1"]
[TimeControl "15 minutes + 5 seconds per move from move one (Round 1 - 4) / 90 minutes + 30 seconds per move from move one (Round 5 - 8)"]
[WhiteFideId "1742353"]
[BlackFideId "1724100"]
[WhiteElo "1710"]
[BlackElo "2000"]

1. e4 {[%clk 00:15:08]} {[%emt 00:00:02]} c5 {[%clk 00:15:08]} {[%emt
00:00:02]} 2. b3 {[%clk 00:15:08]} {[%emt 00:00:06]} Nc6 {[%clk 00:14:52]}
{[%emt 00:00:21]} 3. Bb2 {[%clk 00:15:11]} {[%emt 00:00:01]} d6 {[%clk
00:14:10]} {[%emt 00:00:48]} 4. Bb5 {[%clk 00:15:13]} {[%emt 00:00:03]} Bd7
{[%clk 00:14:04]} {[%emt 00:00:10]} 5. f4 {[%clk 00:15:13]} {[%emt 00:00:05]}
Nf6 {[%clk 00:13:14]} {[%emt 00:00:56]} 6. Qe2 {[%clk 00:15:16]} {[%emt
00:00:01]} Nd4 {[%clk 00:12:32]} {[%emt 00:00:48]} 7. Bxd4 {[%clk 00:15:18]}
{[%emt 00:00:03]} cxd4 {[%clk 00:12:35]} {[%emt 00:00:01]} 8. Nf3 {[%clk
00:14:28]} {[%emt 00:00:54]} Qb6 {[%clk 00:11:59]} {[%emt 00:00:42]} 9. a4
{[%clk 00:14:32]} {[%emt 00:00:02]} a6 {[%clk 00:11:16]} {[%emt 00:00:48]} 10.
Bxd7+ {[%clk 00:14:19]} {[%emt 00:00:18]} Nxd7 {[%clk 00:11:20]} {[%emt
00:00:01]} 11. e5 {[%clk 00:13:55]} {[%emt 00:00:29]} e6 {[%clk 00:11:05]}
{[%emt 00:00:20]} 12. Na3 {[%clk 00:13:58]} {[%emt 00:00:03]} dxe5 {[%clk
00:10:27]} {[%emt 00:00:42]} 13. Nc4 {[%clk 00:13:58]} {[%emt 00:00:05]} Qc5
{[%clk 00:10:01]} {[%emt 00:00:31]} 14. fxe5 {[%clk 00:12:43]} {[%emt
00:01:20]} Nb6 {[%clk 00:09:18]} {[%emt 00:00:48]} 15. Nxb6 {[%clk 00:12:09]}
{[%emt 00:00:39]} Qxb6 {[%clk 00:09:21]} {[%emt 00:00:02]} 16. Qc4 {[%clk
00:12:09]} {[%emt 00:00:04]} Rd8 {[%clk 00:09:06]} {[%emt 00:00:20]} 17. Ng5
{[%clk 00:11:21]} {[%emt 00:00:53]} Be7 {[%clk 00:08:44]} {[%emt 00:00:27]} 18.
h4 {[%clk 00:10:52]} {[%emt 00:00:35]} h6 {[%clk 00:08:18]} {[%emt 00:00:31]}
19. Ne4 {[%clk 00:10:03]} {[%emt 00:00:55]} O-O {[%clk 00:07:48]} {[%emt
00:00:34]} 20. Qd3 {[%clk 00:09:43]} {[%emt 00:00:26]} Rd5 {[%clk 00:06:32]}
{[%emt 00:01:21]} 21. Qg3 {[%clk 00:08:53]} {[%emt 00:00:55]} Kh8 {[%clk
00:06:28]} {[%emt 00:00:08]} 22. Rf1 {[%clk 00:08:19]} {[%emt 00:00:40]} Qa5
{[%clk 00:05:49]} {[%emt 00:00:44]} 23. Kd1 {[%clk 00:02:38]} {[%emt 00:05:46]}
Rxe5 {[%clk 00:05:38]} {[%emt 00:00:17]} 24. Rf4 {[%clk 00:01:58]} {[%emt
00:00:44]} f5 {[%clk 00:05:10]} {[%emt 00:00:33]} 25. Ng5 {[%clk 00:00:46]}
{[%emt 00:01:17]} Qd8 {[%clk 00:03:27]} {[%emt 00:01:47]} 26. Nf3 {[%clk
00:00:48]} {[%emt 00:00:04]} Re4 {[%clk 00:03:23]} {[%emt 00:00:08]} 27. Rxe4
{[%clk 00:00:23]} {[%emt 00:00:31]} fxe4 {[%clk 00:03:27]} {[%emt 00:00:01]} 28.
Ne5 {[%clk 00:00:27]} {[%emt 00:00:01]} Rf5 {[%clk 00:02:37]} {[%emt 00:00:55]}
29. Ng6+ {[%clk 00:00:07]} {[%emt 00:00:25]} Kg8 {[%clk 00:02:21]} {[%emt
00:00:21]} 30. Nxe7+ {[%clk 00:00:11]} {[%emt 00:00:01]} Qxe7 {[%clk 00:02:25]}
{[%emt 00:00:01]} 31. Ke2 {[%clk 00:00:14]} {[%emt 00:00:02]} Qf7 {[%clk
00:01:48]} {[%emt 00:00:41]} 32. Re1 {[%clk 00:00:07]} {[%emt 00:00:11]} Kh7
{[%clk 00:01:33]} {[%emt 00:00:21]} 33. Kd1 {[%clk 00:00:11]} {[%emt 00:00:02]}
Rf1 {[%clk 00:00:45]} {[%emt 00:00:52]} 34. Ke2 {[%clk 00:00:09]} {[%emt
00:00:08]} Rxe1+ {[%clk 00:00:45]} {[%emt 00:00:05]} 35. Kxe1 {[%clk 00:00:13]}
{[%emt 00:00:01]} Qf5 {[%clk 00:00:38]} {[%emt 00:00:12]} 36. Qf2 {[%clk
00:00:12]} {[%emt 00:00:05]} Qe5 {[%clk 00:00:11]} {[%emt 00:00:32]} 37. Ke2
{[%clk 00:00:14]} {[%emt 00:00:04]} Qh5+ {[%clk 00:00:12]} {[%emt 00:00:04]} 38.
Ke1 {[%clk 00:00:17]} {[%emt 00:00:02]} Qc5 {[%clk 00:00:12]} {[%emt 00:00:03]}
39. Kd1 {[%clk 00:00:20]} {[%emt 00:00:03]} b5 {[%clk 00:00:12]} {[%emt
00:00:05]} 40. axb5 {[%clk 00:00:23]} {[%emt 00:00:02]} axb5 {[%clk 00:00:17]}
{[%emt 00:00:01]} 41. g3 {[%clk 00:00:27]} Qe5 {[%clk 00:00:16]} {[%emt
00:00:06]} 42. Qf4 {[%clk 00:00:28]} {[%emt 00:00:04]} Qh5+ {[%clk 00:00:15]}
{[%emt 00:00:05]} 43. Ke1 {[%clk 00:00:32]} {[%emt 00:00:02]} Qd5 {[%clk
00:00:17]} {[%emt 00:00:03]} 44. g4 {[%clk 00:00:30]} {[%emt 00:00:07]} d3
{[%clk 00:00:16]} {[%emt 00:00:06]} 45. c3 {[%clk 00:00:15]} {[%emt 00:00:20]}
Kg8 {[%clk 00:00:12]} {[%emt 00:00:09]} 46. g5 {[%clk 00:00:12]} {[%emt
00:00:08]} hxg5 {[%clk 00:00:11]} {[%emt 00:00:05]} 47. hxg5 {[%clk 00:00:15]}
{[%emt 00:00:02]} Qf5 {[%clk 00:00:10]} {[%emt 00:00:07]} 48. Qxf5 {[%clk
00:00:10]} {[%emt 00:00:10]} exf5 {[%clk 00:00:14]} {[%emt 00:00:01]} 49. c4
{[%clk 00:00:14]} {[%emt 00:00:01]} bxc4 {[%emt 00:00:01]} 50. bxc4 {[%clk
00:00:18]} Kf7 {[%clk 00:00:22]} {[%emt 00:00:02]} 51. Kf2 {[%clk 00:00:22]}
Ke6 {[%clk 00:00:26]} {[%emt 00:00:01]} 52. Ke3 {[%clk 00:00:26]} {[%emt
00:00:01]} Ke5 {[%clk 00:00:30]} {[%emt 00:00:01]} 53. g6 {[%clk 00:00:29]}
{[%emt 00:00:03]} f4+ {[%clk 00:00:34]} {[%emt 00:00:01]} 54. Kf2 {[%clk
00:00:31]} {[%emt 00:00:02]} Kd4 {[%clk 00:00:38]} {[%emt 00:00:01]} 0-1

[Event "The Schackveckan 2023: Göteborg open"]
[Site "Göteborgs schackcentrum, Vegagatan 20, Gothenburg, Sweden"]
[Date "2023.08.11"]
[Round "3.10"]
[White "Wesslen, Ulf"]
[Black "Kosmidis, Thomas"]
[Result "1-0"]
[TimeControl "15 minutes + 5 seconds per move from move one (Round 1 - 4) / 90 minutes + 30 seconds per move from move one (Round 5 - 8)"]
[WhiteFideId "1705199"]
[BlackFideId "1753380"]
[WhiteElo "1916"]
[BlackElo "1721"]

1. Nf3 {[%clk 00:15:03]} {[%emt 00:00:07]} d5 {[%clk 00:15:07]} {[%emt
00:00:03]} 2. g3 {[%clk 00:15:04]} {[%emt 00:00:04]} Nf6 {[%clk 00:15:08]}
{[%emt 00:00:04]} 3. Bg2 {[%clk 00:15:05]} {[%emt 00:00:03]} c6 {[%clk
00:15:10]} {[%emt 00:00:04]} 4. O-O {[%clk 00:14:58]} {[%emt 00:00:11]} g6
{[%clk 00:15:00]} {[%emt 00:00:16]} 5. d3 {[%clk 00:14:33]} {[%emt 00:00:31]}
Bg7 {[%clk 00:14:54]} {[%emt 00:00:11]} 6. Nbd2 {[%clk 00:14:07]} {[%emt
00:00:30]} O-O {[%clk 00:14:54]} {[%emt 00:00:05]} 7. c4 {[%clk 00:14:08]}
{[%emt 00:00:04]} e6 {[%clk 00:14:42]} {[%emt 00:00:18]} 8. Rb1 {[%clk
00:13:46]} {[%emt 00:00:27]} Nbd7 {[%clk 00:14:17]} {[%emt 00:00:30]} 9. b4
{[%clk 00:13:24]} {[%emt 00:00:27]} a6 {[%clk 00:14:17]} {[%emt 00:00:06]} 10.
Qc2 {[%clk 00:13:02]} {[%emt 00:00:26]} Qc7 {[%clk 00:13:23]} {[%emt 00:00:57]}
11. a4 {[%clk 00:12:27]} {[%emt 00:00:42]} Re8 {[%clk 00:13:16]} {[%emt
00:00:11]} 12. Bb2 {[%clk 00:11:31]} {[%emt 00:01:02]} b6 {[%clk 00:11:31]}
{[%emt 00:01:50]} 13. Rfc1 {[%clk 00:10:58]} {[%emt 00:00:37]} Qd6 {[%clk
00:11:24]} {[%emt 00:00:12]} 14. e4 {[%clk 00:10:06]} {[%emt 00:00:58]} dxe4
{[%clk 00:10:52]} {[%emt 00:00:37]} 15. dxe4 {[%clk 00:09:21]} {[%emt
00:00:50]} Ng4 {[%clk 00:09:19]} {[%emt 00:01:39]} 16. Rd1 {[%clk 00:07:48]}
{[%emt 00:01:36]} Qc7 {[%clk 00:08:49]} {[%emt 00:00:34]} 17. Bxg7 {[%clk
00:06:54]} {[%emt 00:01:00]} Kxg7 {[%clk 00:08:52]} {[%emt 00:00:03]} 18. Qc3+
{[%clk 00:06:45]} {[%emt 00:00:14]} Kg8 {[%clk 00:08:55]} {[%emt 00:00:02]} 19.
Nb3 {[%clk 00:05:37]} {[%emt 00:01:13]} c5 {[%clk 00:07:51]} {[%emt 00:01:09]}
20. b5 {[%clk 00:04:06]} {[%emt 00:01:36]} axb5 {[%clk 00:07:41]} {[%emt
00:00:16]} 21. axb5 {[%clk 00:04:02]} {[%emt 00:00:08]} Bb7 {[%clk 00:07:43]}
{[%emt 00:00:03]} 22. Ne1 {[%clk 00:03:50]} {[%emt 00:00:16]} Ngf6 {[%clk
00:07:24]} {[%emt 00:00:25]} 23. Nd2 {[%clk 00:03:33]} {[%emt 00:00:22]} Red8
{[%clk 00:06:52]} {[%emt 00:00:37]} 24. Nc2 {[%clk 00:03:33]} {[%emt 00:00:05]}
Qe5 {[%clk 00:05:30]} {[%emt 00:01:27]} 25. Qe3 {[%clk 00:03:09]} {[%emt
00:00:29]} h5 {[%clk 00:04:33]} {[%emt 00:01:01]} 26. f4 {[%clk 00:03:12]}
{[%emt 00:00:03]} Qc7 {[%clk 00:04:28]} {[%emt 00:00:10]} 27. f5 {[%clk
00:02:33]} {[%emt 00:00:44]} exf5 {[%clk 00:03:59]} {[%emt 00:00:34]} 28. exf5
{[%clk 00:02:17]} {[%emt 00:00:21]} Bxg2 {[%clk 00:03:51]} {[%emt 00:00:12]} 29.
Kxg2 {[%clk 00:02:22]} {[%emt 00:00:01]} Qb7+ {[%clk 00:03:50]} {[%emt
00:00:06]} 30. Kg1 {[%clk 00:02:22]} {[%emt 00:00:04]} Re8 {[%clk 00:03:33]}
{[%emt 00:00:22]} 31. Qf3 {[%clk 00:02:08]} {[%emt 00:00:20]} Qc7 {[%clk
00:02:43]} {[%emt 00:00:54]} 32. Nf1 {[%clk 00:02:11]} {[%emt 00:00:02]} Ne5
{[%clk 00:02:43]} {[%emt 00:00:05]} 33. Qf4 {[%clk 00:01:59]} {[%emt 00:00:17]}
Kg7 {[%clk 00:01:30]} {[%emt 00:01:19]} 34. Nce3 {[%clk 00:01:59]} {[%emt
00:00:05]} Qe7 {[%clk 00:01:19]} {[%emt 00:00:16]} 35. Re1 {[%clk 00:01:47]}
{[%emt 00:00:18]} Nd3 {[%clk 00:01:20]} {[%emt 00:00:04]} 36. Qg5 {[%clk
00:01:37]} {[%emt 00:00:15]} Nxe1 {[%clk 00:01:17]} {[%emt 00:00:07]} 37. Rxe1
{[%clk 00:01:41]} Ne4 {[%clk 00:01:16]} {[%emt 00:00:07]} 38. Qf4 {[%clk
00:01:24]} {[%emt 00:00:22]} g5 {[%clk 00:01:08]} {[%emt 00:00:13]} 39. Qf3
{[%clk 00:01:11]} {[%emt 00:00:17]} g4 {[%clk 00:00:46]} {[%emt 00:00:27]} 40.
Qg2 {[%clk 00:00:58]} {[%emt 00:00:18]} Ng5 {[%clk 00:00:26]} {[%emt 00:00:26]}
41. Nd2 {[%clk 00:00:43]} {[%emt 00:00:20]} Rad8 {[%clk 00:00:27]} {[%emt
00:00:05]} 42. Kh1 {[%clk 00:00:36]} {[%emt 00:00:11]} Rxd2 {[%clk 00:00:26]}
{[%emt 00:00:05]} 43. Qxd2 {[%clk 00:00:37]} {[%emt 00:00:04]} Nf3 {[%clk
00:00:30]} {[%emt 00:00:01]} 44. Qb2+ {[%clk 00:00:42]} Qf6 {[%clk 00:00:25]}
{[%emt 00:00:10]} 45. Qxf6+ {[%clk 00:00:44]} {[%emt 00:00:02]} Kxf6 {[%clk
00:00:29]} {[%emt 00:00:02]} 46. Nd5+ {[%clk 00:00:49]} {[%emt 00:00:01]} Kxf5
{[%clk 00:00:21]} {[%emt 00:00:11]} 47. Rxe8 {[%clk 00:00:52]} {[%emt
00:00:01]} 1-0

[Event "The Schackveckan 2023: Göteborg open"]
[Site "Göteborgs schackcentrum, Vegagatan 20, Gothenburg, Sweden"]
[Date "2023.08.11"]
[Round "3.11"]
[White "Johansson, Roy"]
[Black "Thern, Alfred"]
[Result "1-0"]
[TimeControl "15 minutes + 5 seconds per move from move one (Round 1 - 4) / 90 minutes + 30 seconds per move from move one (Round 5 - 8)"]
[WhiteFideId "1745972"]
[BlackFideId "1775227"]
[WhiteElo "1890"]
[BlackElo "1643"]

1. d4 {[%clk 00:15:08]} {[%emt 00:00:02]} Nf6 {[%clk 00:15:08]} {[%emt
00:00:02]} 2. Bf4 {[%clk 00:15:11]} {[%emt 00:00:03]} d5 {[%clk 00:15:10]}
{[%emt 00:00:03]} 3. e3 {[%clk 00:15:14]} c5 {[%clk 00:15:14]} {[%emt
00:00:02]} 4. c3 {[%clk 00:15:16]} {[%emt 00:00:02]} Nc6 {[%clk 00:15:14]}
{[%emt 00:00:05]} 5. Nd2 {[%clk 00:15:11]} {[%emt 00:00:08]} e6 {[%clk
00:15:02]} {[%emt 00:00:20]} 6. Bd3 {[%clk 00:15:06]} {[%emt 00:00:10]} Be7
{[%clk 00:14:58]} {[%emt 00:00:08]} 7. Ngf3 {[%clk 00:14:59]} {[%emt 00:00:12]}
Nh5 {[%clk 00:14:27]} {[%emt 00:00:36]} 8. Bg3 {[%clk 00:14:35]} {[%emt
00:00:29]} Nxg3 {[%clk 00:14:14]} {[%emt 00:00:19]} 9. hxg3 {[%clk 00:14:37]}
h6 {[%clk 00:14:13]} {[%emt 00:00:07]} 10. Ne5 {[%clk 00:14:10]} {[%emt
00:00:33]} Nxe5 {[%clk 00:14:02]} {[%emt 00:00:16]} 11. dxe5 {[%clk 00:14:12]}
Qc7 {[%clk 00:13:40]} {[%emt 00:00:29]} 12. f4 {[%clk 00:13:51]} {[%emt
00:00:26]} c4 {[%clk 00:13:18]} {[%emt 00:00:27]} 13. Bc2 {[%clk 00:13:31]}
{[%emt 00:00:25]} Qb6 {[%clk 00:13:03]} {[%emt 00:00:21]} 14. Ba4+ {[%clk
00:12:03]} {[%emt 00:01:32]} Kf8 {[%clk 00:12:40]} {[%emt 00:00:28]} 15. e4
{[%clk 00:10:14]} {[%emt 00:01:53]} Qxb2 {[%clk 00:11:48]} {[%emt 00:00:58]} 16.
Qc1 {[%clk 00:09:05]} {[%emt 00:01:14]} Qb6 {[%clk 00:11:41]} {[%emt 00:00:12]}
17. Ke2 {[%clk 00:08:17]} {[%emt 00:00:52]} Qa5 {[%clk 00:10:34]} {[%emt
00:01:14]} 18. Bc2 {[%clk 00:07:42]} {[%emt 00:00:40]} Qxc3 {[%clk 00:09:50]}
{[%emt 00:00:49]} 19. Rh3 {[%clk 00:07:17]} {[%emt 00:00:29]} d4 {[%clk
00:08:50]} {[%emt 00:01:06]} 20. Ba4 {[%clk 00:06:00]} {[%emt 00:01:21]} Qe3+
{[%clk 00:08:04]} {[%emt 00:00:52]} 21. Kf1 {[%clk 00:05:06]} {[%emt 00:00:58]}
c3 {[%clk 00:06:52]} {[%emt 00:01:18]} 22. Nf3 {[%clk 00:04:29]} {[%emt
00:00:42]} Qxe4 {[%clk 00:05:54]} {[%emt 00:01:03]} 23. Qd1 {[%clk 00:03:49]}
{[%emt 00:00:44]} d3 {[%clk 00:05:18]} {[%emt 00:00:42]} 24. Bb5 {[%clk
00:02:43]} {[%emt 00:01:12]} d2 {[%clk 00:03:33]} {[%emt 00:01:50]} 25. Ng5
{[%clk 00:02:33]} {[%emt 00:00:15]} Bxg5 {[%clk 00:03:10]} {[%emt 00:00:29]} 26.
fxg5 {[%clk 00:02:35]} {[%emt 00:00:02]} Qf5+ {[%clk 00:02:54]} {[%emt
00:00:21]} 27. Kg1 {[%clk 00:02:22]} {[%emt 00:00:18]} Qxe5 {[%clk 00:02:43]}
{[%emt 00:00:15]} 28. Be2 {[%clk 00:02:19]} {[%emt 00:00:08]} Qe3+ {[%clk
00:02:46]} {[%emt 00:00:03]} 29. Kh2 {[%clk 00:02:21]} {[%emt 00:00:03]} c2
{[%clk 00:02:20]} {[%emt 00:00:30]} 30. Qxc2 {[%clk 00:02:18]} {[%emt
00:00:08]} Qxe2 {[%clk 00:02:20]} {[%emt 00:00:05]} 31. Rd1 {[%clk 00:02:03]}
{[%emt 00:00:20]} Qb5 {[%clk 00:01:44]} {[%emt 00:00:39]} 32. Rxd2 {[%clk
00:01:48]} {[%emt 00:00:22]} Bd7 {[%clk 00:01:31]} {[%emt 00:00:18]} 33. Qc7
{[%clk 00:01:46]} {[%emt 00:00:07]} Ke7 {[%clk 00:01:07]} {[%emt 00:00:32]} 34.
Rh4 {[%clk 00:01:37]} {[%emt 00:00:11]} Rac8 {[%clk 00:00:26]} {[%emt
00:00:46]} 35. Qd6+ {[%clk 00:01:40]} {[%emt 00:00:02]} Ke8 {[%clk 00:00:29]}
{[%emt 00:00:03]} 36. g6 {[%clk 00:01:39]} {[%emt 00:00:06]} f6 {[%clk
00:00:14]} {[%emt 00:00:20]} 37. Rhd4 {[%clk 00:01:23]} {[%emt 00:00:20]} Rd8
{[%clk 00:00:18]} {[%emt 00:00:02]} 38. Qc7 {[%clk 00:01:24]} {[%emt 00:00:04]}
Qh5+ {[%clk 00:00:19]} {[%emt 00:00:04]} 39. Kg1 {[%emt 00:00:04]} Qb5 {[%clk
00:00:19]} {[%emt 00:00:03]} 40. Rd6 {[%clk 00:01:22]} {[%emt 00:00:10]} Ke7
{[%clk 00:00:11]} {[%emt 00:00:13]} 41. Qc3 {[%clk 00:00:49]} {[%emt 00:00:37]}
Qb1+ {[%clk 00:00:13]} {[%emt 00:00:04]} 42. Kh2 {[%clk 00:00:52]} {[%emt
00:00:01]} Qxg6 {[%clk 00:00:15]} {[%emt 00:00:04]} 43. Qc5 {[%clk 00:00:52]}
{[%emt 00:00:04]} 1-0